Cogmind - Beta 13 @@@ ROGUE MODE // 2024.02.29 @ 18:46:04 Player: J1ANG-5HI Result: Destroyed by Autobeam Turret with Autobeam Performance ------------- Evolutions (0) 0 Regions Visited (2) 400 Robots Destroyed (19) 95 Value Destroyed (480) 480 Prototype IDs (0) 0 Alien Tech Used (0) 0 Bonus (-16) -16 TOTAL SCORE: 959 Bonus ------- Friendly Fire -16 Cogmind --------- Core Integrity 0/250 Matter 165/300 Energy 100/100 System Corruption 0% Temperature Cool (6) Movement Rolling (117) Ox1 Location -10/Subcaves Parts ------- > --- POWER (1) -------- (None) > --- PROPULSION (2) --- Compact Wheel Subdweller Monowheel > --- UTILITY (2) ------ High-capacity Storage Unit Makeshift Light Armor Plating > --- WEAPON (2) ------- Subdweller Beam Cannon Grenade Launcher > --- INVENTORY (20) --- Carbon-fiber Leg Carbon-fiber Leg Myomer Leg Subdweller Monowheel Heat Sink Improved Heat Sink Large Battery (200) Subdweller Optics Sensor Array Signal Interpreter Scrap Shield Beamcaster Assault Rifle Subdweller Machine Gun Grenade Launcher Shrapnel Trap Scrap Shield Fragment (47) Peak State ------------ > --- POWER ------------ Light Angular Momentum Engine > --- PROPULSION ------- Compact Wheel Subdweller Monowheel > --- UTILITY ---------- High-capacity Storage Unit Makeshift Light Armor Plating > --- WEAPON ----------- Subdweller Beam Cannon Barrage Gun > --- INVENTORY -------- Light Angular Momentum Engine Carbon-fiber Leg Carbon-fiber Leg Myomer Leg Subdweller Monowheel Heat Sink Improved Heat Sink Large Battery Subdweller Optics Sensor Array Signal Interpreter Scrap Shield Beamcaster Assault Rifle Subdweller Machine Gun Grenade Launcher Grenade Launcher Shrapnel Trap Scrap Shield Fragment [Rating: 22] Favorites ----------- Power Light Ion Engine Engine Light Ion Engine Propulsion Compact Wheel Treads Light Treads Leg Aluminum Leg Wheel Compact Wheel Utility High-capacity Storage Unit Device Sensor Array Storage High-capacity Storage Unit Protection Light Armor Plating Weapon Assault Rifle Energy Gun EM Pulse Gun Energy Cannon Subdweller Beam Cannon Ballistic Gun Assault Rifle Launcher Grenade Launcher Build | -11 -10 -10 ------- Run | Yrd Mat Sub Slots Evolved . | . . . Power . | . . . Propulsion . | . . . Utility . | . . . Weapon . | . . . Parts Attached 30 | . 12 18 Power 5 | . 1 4 Engine 5 | . 1 4 Core . | . . . Reactor . | . . . Propulsion 5 | . 4 1 Treads 2 | . 2 . Leg . | . . . Wheel 3 | . 2 1 Hover . | . . . Flight . | . . . Utility 6 | . 3 3 Device 2 | . 2 . Storage 1 | . 1 . Processor . | . . . Hackware . | . . . Protection 3 | . . 3 Artifact . | . . . Weapon 14 | . 4 10 Energy Gun 2 | . 2 . Energy Cannon 1 | . . 1 Ballistic Gun 6 | . 1 5 Ballistic Cannon . | . . . Launcher 5 | . 1 4 Special Weapon . | . . . Impact Weapon . | . . . Slashing Weapon . | . . . Piercing Weapon . | . . . Special Melee Weapon . | . . . Unidentified Prototypes . | . . . Parts Lost 7 | . 2 5 Power 3 | . 1 2 Propulsion . | . . . Utility 1 | . . 1 Weapon 3 | . 1 2 Highest Loss Streak 2 | . 1 2 To Critical Strikes . | . . . Average Slot Usage (%) 98 | . 97 99 Engine 13 | . 14 13 Treads 7 | . 13 1 Wheel 19 | . 13 26 Device 5 | . 11 . Storage 14 | . 14 14 Protection 6 | . . 13 Energy Gun 8 | . 15 1 Energy Cannon 4 | . . 9 Ballistic Gun 13 | . 11 14 Launcher 1 | . . 2 Naked Turns . | . . . Heaviest Build 64 | 12 51 64 Greatest Support 36 | 20 20 36 Greatest Overweight (x) 3 | . 3 3 Average Overweight (x) 1 | . 2 1 Largest Inventory Capacity 20 | . 20 20 Average Capacity 19 | . 19 20 Most Carried 20 | . 20 20 Average Carried 18 | . 16 19 Final Capacity 20 | 8 20 20 Final Carried 19 | 6 19 18 Class Distribution -------------------- 55% | Mutant 44% | Subdweller-Mutant Dominant Class ---------------- Mutant | -10/Materials Subdweller-Mutant | -10/Subcaves Resources | -11 -10 -10 ----------- Run | Yrd Mat Sub Matter Collected 776 | 200 298 278 Remotely . | . . . Salvage Created 572 | . 414 158 Parts 31 | . 18 13 Haulers Intercepted 1 | . 1 . Recyclers Shooed 2 | . 2 . Parts Field Recycled . | . . . Retrieved Matter . | . . . Parts Self-Destructed 5 | . . 5 Prevented . | . . . Kills | -11 -10 -10 ------- Run | Yrd Mat Sub Combat Hostiles Destroyed 18 | . 10 8 Guns 10 | . 9 1 Cannons 3 | . . 3 AOE 4 | . . 4 Classes Destroyed 4 | . 3 1 Hauler 1 | . 1 . Swarmer 7 | . 3 4 Grunt 7 | . 7 . Subdweller 4 | . . 4 Best Kill Streak 4 | . 3 4 Combat Bots Only 4 | . 3 4 Max Kills in Single Turn 3 | . 1 3 Gunslinging . | . . . Exploded 3 | . . 3 Melee . | . . . Uniques/NPCs Destroyed . | . . . Combat | -11 -10 -10 -------- Run | Yrd Mat Sub Hostile Shots Fired 119 | . 44 75 Missed 36 | . 11 25 Damage Taken 1284 | . 343 941 Core 250 | . 73 177 Absorbed by Shields . | . . . Core Remaining (%) 100 | 100 . . Volleys Fired 86 | . 52 34 Largest 2 | . 2 2 Hottest 108 | . 85 108 Shots Fired 130 | . 78 52 Gun 100 | . 67 33 Cannon 5 | . . 5 Launcher 25 | . 11 14 Special . | . . . Kinetic 55 | . 27 28 Thermal 20 | . 10 10 Explosive 25 | . 11 14 Electromagnetic 30 | . 30 . Robot Hit Streak 11 | . 7 11 Robot Miss Streak 5 | . 2 5 Penetration Max . | . . . Secondary Targets 2 | . 1 1 Max Gunslinging Chain 1 | . 1 1 Shots Hit Robots 65 | . 40 25 Core Hits 33 | . 16 17 Critical Kills 1 | . . 1 Critical Parts Destroyed . | . . . Critical Strikes 3 | . 2 1 Burn 1 | . 1 . Destroy 1 | . . 1 Corrupt 1 | . 1 . Melee Attacks . | . . . Impact . | . . . Slashing . | . . . Piercing . | . . . Sneak Attacks . | . . . Combat Hostiles . | . . . Follow-up Attacks . | . . . Damage Inflicted 1313 | . 594 719 Guns 852 | . 572 280 Cannons 139 | . . 139 Explosions 322 | . 22 300 Melee . | . . . Ramming . | . . . Kinetic 468 | . 204 264 Thermal 281 | . 126 155 Explosive 300 | . . 300 Electromagnetic 264 | . 264 . Impact . | . . . Slashing . | . . . Piercing . | . . . Highest Corruption . | . . . Average Corruption . | . . . Corruption Purged . | . . . Corruption Blocked . | . . . Overload Shots . | . . . Overflow Damage . | . . . Projectiles . | . . . Explosions . | . . . Melee . | . . . Knockbacks . | . . . Impact . | . . . Kinetic . | . . . Secondary . | . . . Self-Inflicted Damage 51 | . 27 24 Shots 2 | . 1 1 Rammed . | . . . Targets Rammed . | . . . Kicked . | . . . Crushed . | . . . Highest Temperature 179 | . 179 44 Average Temperature 61 | . 66 22 Received Heat Transfer 330 | . 102 228 Siege Activations . | . . . Robots Corrupted 1 | . 1 . Combat Hostiles 1 | . 1 . Parts Fried 2 | . 2 . Impact Corruptions . | . . . Robots Melted . | . . . Combat Hostiles . | . . . Parts Melted . | . . . Heat Transferred 605 | . 383 222 Parts Sabotaged . | . . . Parts Stolen . | . . . Parts Stripped . | . . . Power Chain Reactions 1 | . 1 . Alert | -11 -10 -10 ------- Run | Yrd Mat Sub Peak Influence 171 | . 171 . Initial . | . . . Average 50 | . 50 . Maximum Alert Level . | . . . Low Security (%) 100 | . 100 . Level 1 . | . . . Level 2 . | . . . Level 3 . | . . . Level 4 . | . . . Level 5 . | . . . High Security . | . . . Max Security . | . . . Squads Dispatched 5 | . 5 . Investigation 2 | . 2 . Extermination . | . . . Reinforcement 3 | . 3 . Assault . | . . . Garrison . | . . . Intercept . | . . . Searches Triggered . | . . . Construction Impeded . | . . . Haulers Reinforced . | . . . Active Scanning Responses . | . . . Cargo Convoy Interrupts . | . . . Stealth | -11 -10 -10 --------- Run | Yrd Mat Sub Distress Signals . | . . . Communications Jammed . | . . . Distress Signals . | . . . Times Spotted 64 | . 22 42 Peak Tracking Total 7 | . 3 7 Tactical Retreats 2 | . . 2 Traps | -11 -10 -10 ------- Run | Yrd Mat Sub Traps Triggered 7 | . 1 6 Indirectly . | . . . Trap Hack Attempts . | . . . Triggered . | . . . Disarmed . | . . . Reprogrammed . | . . . Reused . | . . . Traps Extracted . | . . . Installed . | . . . Triggered . | . . . Most Traps Carried 1 | . . 1 Machines | -11 -10 -10 ---------- Run | Yrd Mat Sub Machines Disabled 4 | . 1 3 Max in Single Turn 2 | . 1 2 Machines Repaired . | . . . Machines Dismantled . | . . . Machines Sabotaged . | . . . Overloaded Fab Kills . | . . . Hacking | -11 -10 -10 --------- Run | Yrd Mat Sub Machines Accessed 9 | . 8 1 Terminals 5 | . 5 . Fabricators . | . . . Repair Stations 1 | . 1 . Recycling Units 2 | . 2 . Scanalyzers . | . . . Garrison Access . | . . . Total Hacks 21 | . 18 3 Successful 9 | . 6 3 Failed 12 | . 12 . Catastrophic 4 | . 4 . Database Lockouts . | . . . Manual 12 | . 12 . Terminals 10 | . 10 . Fabricators . | . . . Repair Stations 2 | . 2 . Recycling Units 6 | . 6 . Scanalyzers . | . . . Garrison Access . | . . . Terminal Hacks 4 | . 1 3 Record 3 | . . 3 Locate Traps 1 | . 1 . Fabricator Hacks . | . . . Repair Station Hacks 1 | . 1 . Scan Component 1 | . 1 . Recycling Unit Hacks 1 | . 1 . Report Inventory 1 | . 1 . Scanalyzer . | . . . Garrison Access Hacks . | . . . Unauthorized Hacks 3 | . 3 . Terminals 1 | . 1 . Botnet 1 | . 1 . Fabricators . | . . . Repair Stations . | . . . Recycling Units 2 | . 2 . Reject 1 | . 1 . Mask 1 | . 1 . Scanalyzers . | . . . Garrison Access . | . . . Data Cores Recovered . | . . . Used . | . . . Hacking Detections 8 | . 8 . Full Trace Events 1 | . 1 . Feedback Events . | . . . Feedback Blocked . | . . . Robot Schematics Acquired . | . . . Robots Built . | . . . Authchips . | . . . Time . | . . . Total Robot Build Rating . | . . . Part Schematics Acquired . | . . . Parts Built . | . . . Authchips . | . . . Time . | . . . Total Part Build Rating . | . . . Parts Repaired . | . . . Time . | . . . Parts Recycled . | . . . Recycled Matter . | . . . Retrieved Matter . | . . . Retrieved Components . | . . . Parts Scanalyzed . | . . . Part Schematics Acquired . | . . . Parts Damaged . | . . . Bothacking | -11 -10 -10 ------------ Run | Yrd Mat Sub Used RIF Installer . | . . . Robots Hacked . | . . . Non-combat . | . . . Combat . | . . . Robot Hacks Applied . | . . . Relay Couplers Released . | . . . Fabnet Peak Effective % . | . . . Robots Rewired . | . . . Allies Hacked . | . . . Hacks Repelled . | . . . Allies | -11 -10 -10 -------- Run | Yrd Mat Sub Total Allies . | . . . Largest Group . | . . . Highest-Rated Group . | . . . Highest-Rated Ally . | . . . Total Orders . | . . . Ally Attacks . | . . . Total Damage . | . . . Kills . | . . . Allies Corrupted . | . . . Allies Melted . | . . . Intel | -11 -10 -10 ------- Run | Yrd Mat Sub Robot Analysis Total . | . . . Derelict Logs Recovered 1 | . . 1 Drone Launches . | . . . Drone Recoveries . | . . . Exploration | -11 -10 -10 ------------- Run | Yrd Mat Sub Turns Passed 2720 | . 1365 1355 Spaces Moved 1888 | 1 869 1018 Core . | . . . Treads . | . . . Legs 46 | 1 45 . Wheels 1842 | . 824 1018 Hover . | . . . Flight . | . . . Fastest Speed 117 | 120 120 117 Average Speed 126 | 120 135 119 Slowest Speed 145 | 120 145 145 Overloaded Moves . | . . . Propulsion Burnouts . | . . . Robots Hopped . | . . . Cave-ins Triggered . | . . . Exploration Rate (%) 49 | 2 95 51 Regions Visited 2 Branch Regions 1 Pre-discovered Areas . | . . . Known Exits Taken . | . . . Unknown Exits Taken 2 | 1 1 . Scrap Searched 12 | . . 12 Spaces Dug 62 | . 48 14 Terrain Destroyed 144 | . 79 65 Melee . | . . . Projectile . | . . . AOE 144 | . 79 65 Terrain Rammed . | . . . Walls Destroyed . | . . . Machines Disabled . | . . . Actions | -11 -10 -10 --------- Run | Yrd Mat Sub Total 2080 | . 977 1103 Wait 17 | . 17 . Move 1886 | . 868 1018 Hop . | . . . Pick Up 37 | . 22 15 Fast Attach 2 | . . 2 Attach 11 | . 4 7 Detach . | . . . Swap 17 | . 8 9 Drop 22 | . 6 16 Fire 86 | . 52 34 Melee . | . . . Ram . | . . . Kick . | . . . Crush . | . . . Escape Stasis . | . . . Rewire 2 | . . 2 Trap . | . . . Miscellaneous . | . . . Route ------- -11/Scrapyard -10/Materials (discovered 6 exits: [*Mat x3] / [*Min x2] / *Sub) -10/Subcaves (discovered 2 exits: [*Mat] / [*Rec]) History --------- Turn | Location | Event 1 | -11/Scrapyard | Discovered new exit (range 0) 1 | -11/Scrapyard | Entered Materials 271 | -10/Materials | Discovered new exit (range 7) 309 | -10/Materials | Build established: Mutant 609 | -10/Materials | Discovered new exit (range 16) 638 | -10/Materials | Discovered new exit (range 10) 775 | -10/Materials | Discovered new exit (range 11) 1039 | -10/Materials | Discovered new exit (range 16) 1347 | -10/Materials | Discovered new exit (range 10) 1366 | -10/Materials | Entered Subcaves 1367 | -10/Subcaves | Shifting Twisted Machinery released Sub. Monowheel 1503 | -10/Subcaves | Ambushed by swarm of Subdwellers 1504 | -10/Subcaves | Shifting Twisted Machinery released Scrap Shield 1520 | -10/Subcaves | Ambushed by Subdwellers from Twisted Machinery 1849 | -10/Subcaves | Build established: Subdweller-Mutant 1981 | -10/Subcaves | Discovered new exit (range 15) 2050 | -10/Subcaves | Visited Clippyterm 2455 | -10/Subcaves | Core integrity fell below 50% 2658 | -10/Subcaves | Discovered new exit (range 14) 2662 | -10/Subcaves | Core integrity fell below 20% 2721 | -10/Subcaves | Destroyed by Autobeam Turret with Autobeam Last Messages --------------- 02594_ Lgt. Angular Momentum Engine destroyed. 02594_ Barrage Gun destroyed. 02604_ The unstable cave ceiling collapses. 02610_ Triggered Shrapnel Trap. 02610_ An expanding cloud of shrapnel blasts out in all directions. 02612_ The unstable cave ceiling collapses. 02625_ Triggered Piercing Trap. 02625_ Spikes shoot up from the floor. 02625_ Critical hit (Impale). 02658_ EXIT=FOUND 02660_ Lgt. Angular Momentum Engine destroyed. 02661_ Machine disabled. 02661_ S-10 Pest destroyed. 02661_ Machine disabled. 02661_ S-10 Pest destroyed. 02666_ Flight Unit fries itself beyond repair. 02667_ Lgt. Ion Engine fries itself beyond repair. 02674_ S-10 Pest destroyed. Map ----- +----------------------------------------------------+ | ????????????????????????????????????????????? ??? | | ????????????????????????????????????????????# ??? | | ???????????????????????????????????????????? ??? | | ???????????????????????????????????????????? ??? | | ???????????????????????????????????????????? ??? | | ????????????????????????????????????????????# #?? | | ????????????????????????????????????????????# ##? | | ????????????????????????????????????????????# #? | | ???? ??????????? ???????????????????########? ## | | ???? ????????? #?###?????????????## ### # | | ???? ????????? ## ???????????## ## # | | ???? ?????????? ??????????## ## | | ???? #####?????? ??????????# ### ## | | ???? #??????? #?????????# #### # | | ???? ##???????# ?????????# ### | | #??? #???????# ?????????# ### ## | | ???? #?#?###### ?????????# #?###### | | ???? ?? # #???????## ##?##### | | ?### #?# # ##??#### #?## | | ## ## ## #### ### | | t ## ## ###### | | < ###??????## | | ###### #????????## | | ##= # #????### #?????## # | | #?????????????# #??????######????## | | #?????????????# @ #????????????????# | | ### #####??????##### ##????????????????# ## | | ??# #?????## ## ##?????????????????# ?# | | ?## ###?????# #??????????????????# ?# | | ## ######### #??????????????????# #?# | | ## ## # ##??????????????????## ### | | ## ###???????????????????# ## | | ## ##??????????????????# # | | ## ##??????????????????# ## | | #### #?????????????????## # | | ##?## ## #????????????????# | | ##?## ### ####??????????????### | | ######## #?# ##????????????###### | | ##???# ##?# ##?????????????#"""### | | #???# #??# #??????????????#"" ## | | #??# ##??###??????????????#"X | | ##??## ##????????????????????#"" ## # ### | | ###????#######?????????????????????#"""## # ### | | ##??????????????????????????????????######## | | ##????????????????????????????????????????# | | #????????????????????????????????????????# #### | | ##????????????????????????????????????????# #??? | | ##?????????????????????????????????????????####??? | | ##???????????????????????????????????????????????? | | ##??????????????????????????????????????????????? | +----------------------------------------------------+ Best States ------------- Heat Dissipation 25 Energy Generation 18 Energy Capacity 250 Matter Stores 300 Matter Capacity 300 Sight Range 16 Robot Scan Range 14 Terrain Scan Density 10 Armor Coverage 150 Evasion (%) 55 Recoil Reduction 1 Item Schematics ----------------- None Robot Schematics ------------------ None Fabricated ------------ Nothing Alien Tech Used ----------------- None Achievements -------------- None Challenges ------------ None Game ------ Seed SapperProtonMultitool Manual? 0 Play Time 00:33:38 Cumulative 168.6 hours Start 2024.02.29 @ 18:01:24 End 2024.02.29 @ 18:46:04 Sessions 1 Manual Loads 0 Difficulty Rogue Special Mode None Game No. 123 Rogue 113 Adventurer 0 Explorer 10 Win Type - Total 3 Types 3/0/0/0/0/0/0/0/0 Lore% 57 Gallery% 66 Achievement% 51 Wizard Run 0 Options --------- Layout 2 ASCII 0 Keyboard 0 Movement Arrows Keybinds 1 Fullscreen 1 Font 24/Terminus Map View 50x44 Zoom Use 0% Tactical HUD 1 Map Filters NONE Filters NONE Steam 1 RUN: 9991ff00-80f3-48ef-bfcf-e5b163013824